[Event "Titled Tuesday Blitz August 16 Early 2022"]
[White "Fawzy, Adham"]
[Black "Yeletsky, Ivan"]
[WhiteFideId "10613129"]
[BlackFideId "24180327"]
[WhiteElo "2541"]
[BlackElo "2293"]
[Result "1/2-1/2"]
[Round "06"]
[TimeControl "180+1"]
[Date "2022.08.16"]
[WhiteClock "0:00:25"]
[BlackClock "0:00:07"]

1. e4 {[%clk 0:03:00]}  Nf6 {[%clk 0:02:58]} 2. e5 {[%clk 0:03:01]}  Nd5 {[%clk 0:02:58]} 3. Nc3 {[%clk 0:03:02]}  Nxc3 {[%clk 0:02:58]} 4. dxc3 {[%clk 0:03:02]}  d6 {[%clk 0:02:58]} 5. Nf3 {[%clk 0:03:03]}  Bg4 {[%clk 0:02:57]} 6. Bf4 {[%clk 0:03:04]}  e6 {[%clk 0:02:57]} 7. h3 {[%clk 0:03:04]}  Bh5 {[%clk 0:02:56]} 8. Bb5+ {[%clk 0:02:56]}  Nc6 {[%clk 0:02:48]} 9. Qe2 {[%clk 0:02:51]}  a6 {[%clk 0:02:43]} 10. Bxc6+ {[%clk 0:02:46]}  bxc6 {[%clk 0:02:44]} 11. O-O {[%clk 0:02:46]}  Be7 {[%clk 0:02:40]} 12. Rfe1 {[%clk 0:02:42]}  O-O {[%clk 0:02:39]} 13. Rad1 {[%clk 0:02:42]}  d5 {[%clk 0:02:36]} 14. b3 {[%clk 0:02:41]}  Qb8 {[%clk 0:02:28]} 15. a4 {[%clk 0:02:40]}  Qb7 {[%clk 0:02:27]} 16. Qe3 {[%clk 0:02:27]}  c5 {[%clk 0:02:27]} 17. Rd2 {[%clk 0:02:27]}  Rad8 {[%clk 0:02:21]} 18. Bg5 {[%clk 0:02:25]}  Bxg5 {[%clk 0:02:07]} 19. Nxg5 {[%clk 0:02:26]}  h6 {[%clk 0:02:03]} 20. Nf3 {[%clk 0:02:24]}  d4 {[%clk 0:02:00]} 21. cxd4 {[%clk 0:02:25]}  Bxf3 {[%clk 0:01:59]} 22. Qxf3 {[%clk 0:02:19]}  Qxf3 {[%clk 0:01:58]} 23. gxf3 {[%clk 0:02:20]}  cxd4 {[%clk 0:01:52]} 24. Red1 {[%clk 0:02:14]}  c5 {[%clk 0:01:52]} 25. c3 {[%clk 0:02:12]}  Rb8 {[%clk 0:01:51]} 26. cxd4 {[%clk 0:02:05]}  cxd4 {[%clk 0:01:52]} 27. Rxd4 {[%clk 0:02:05]}  Rxb3 {[%clk 0:01:52]} 28. Kg2 {[%clk 0:02:05]}  Rfb8 {[%clk 0:01:39]} 29. Rd8+ {[%clk 0:02:05]}  Kh7 {[%clk 0:01:35]} 30. Rxb8 {[%clk 0:02:06]}  Rxb8 {[%clk 0:01:35]} 31. Rd6 {[%clk 0:02:06]}  Ra8 {[%clk 0:01:22]} 32. Kg3 {[%clk 0:02:06]}  Kg6 {[%clk 0:01:17]} 33. Kf4 {[%clk 0:02:06]}  a5 {[%clk 0:01:17]} 34. Ke4 {[%clk 0:01:35]}  Rb8 {[%clk 0:01:16]} 35. Rd4 {[%clk 0:01:33]}  Rb2 {[%clk 0:01:15]} 36. Ke3 {[%clk 0:01:32]}  Rb3+ {[%clk 0:01:10]} 37. Ke4 {[%clk 0:01:31]}  Ra3 {[%clk 0:01:09]} 38. Rc4 {[%clk 0:01:29]}  Ra2 {[%clk 0:01:08]} 39. Ke3 {[%clk 0:01:18]}  Kf5 {[%clk 0:01:06]} 40. f4 {[%clk 0:01:11]}  Ra3+ {[%clk 0:01:05]} 41. Ke2 {[%clk 0:01:06]}  Rxh3 {[%clk 0:01:05]} 42. Rc7 {[%clk 0:01:06]}  Kg6 {[%clk 0:00:55]} 43. Ra7 {[%clk 0:01:05]}  Ra3 {[%clk 0:00:56]} 44. Rxa5 {[%clk 0:01:04]}  h5 {[%clk 0:00:53]} 45. Ra8 {[%clk 0:00:54]}  Kf5 {[%clk 0:00:52]} 46. Ra7 {[%clk 0:00:54]}  Kg6 {[%clk 0:00:46]} 47. Ra8 {[%clk 0:00:49]}  h4 {[%clk 0:00:46]} 48. Rh8 {[%clk 0:00:49]}  h3 {[%clk 0:00:41]} 49. f3 {[%clk 0:00:48]}  Rxa4 {[%clk 0:00:39]} 50. Ke3 {[%clk 0:00:48]}  Ra3+ {[%clk 0:00:37]} 51. Ke4 {[%clk 0:00:47]}  Ra1 {[%clk 0:00:28]} 52. Rxh3 {[%clk 0:00:40]}  Re1+ {[%clk 0:00:29]} 53. Kd3 {[%clk 0:00:40]}  Kf5 {[%clk 0:00:28]} 54. Rh7 {[%clk 0:00:41]}  Kxf4 {[%clk 0:00:21]} 55. Rxg7 {[%clk 0:00:41]}  Re3+ {[%clk 0:00:19]} 56. Kd4 {[%clk 0:00:39]}  Rxe5 {[%clk 0:00:19]} 57. Rxf7+ {[%clk 0:00:36]}  Rf5 {[%clk 0:00:19]} 58. Re7 {[%clk 0:00:37]}  e5+ {[%clk 0:00:12]} 59. Kd3 {[%clk 0:00:37]}  Kxf3 {[%clk 0:00:12]} 60. Re8 {[%clk 0:00:38]}  Kf4 {[%clk 0:00:10]} 61. Ke2 {[%clk 0:00:37]}  Rh5 {[%clk 0:00:08]} 62. Ra8 {[%clk 0:00:34]}  Rh2+ {[%clk 0:00:08]} 63. Ke1 {[%clk 0:00:34]}  Rh3 {[%clk 0:00:07]} 64. Ke2 {[%clk 0:00:32]}  Rb3 {[%clk 0:00:07]} 65. Rf8+ {[%clk 0:00:26]}  Ke4 {[%clk 0:00:07]} 66. Rh8 {[%clk 0:00:27]}  Rb2+ {[%clk 0:00:07]} 67. Ke1 {[%clk 0:00:27]}  Kd4 {[%clk 0:00:04]} 68. Rh3 {[%clk 0:00:24]}  e4 {[%clk 0:00:05]} 69. Rg3 {[%clk 0:00:23]}  Rc2 {[%clk 0:00:05]} 70. Rh3 {[%clk 0:00:24]}  Rg2 {[%clk 0:00:05]} 71. Ra3 {[%clk 0:00:24]}  e3 {[%clk 0:00:05]} 72. Ra8 {[%clk 0:00:23]}  Rg1+ {[%clk 0:00:05]} 73. Ke2 {[%clk 0:00:23]}  Rg2+ {[%clk 0:00:06]} 74. Ke1 {[%clk 0:00:24]}  Rg1+ {[%clk 0:00:06]} 75. Ke2 {[%clk 0:00:24]}  Rg2+ {[%clk 0:00:07]} 76. Ke1 {[%clk 0:00:25]} 1/2-1/2


[Site "https://www.chess.com"]

[Event "Titled Tuesday Blitz August 16 Early 2022"]
[White "Fernandez, Fernando"]
[Black "Pakleza, Zbigniew"]
[WhiteFideId "3802299"]
[BlackFideId "1119290"]
[WhiteElo "2292"]
[BlackElo "2411"]
[Result "1/2-1/2"]
[Round "06"]
[TimeControl "180+1"]
[Date "2022.08.16"]
[WhiteClock "0:00:05"]
[BlackClock "0:00:09"]

1. d4 {[%clk 0:02:55]}  d6 {[%clk 0:02:55]} 2. Nf3 {[%clk 0:02:55]}  Bg4 {[%clk 0:02:55]} 3. Bg5 {[%clk 0:02:49]}  Bxf3 {[%clk 0:02:49]} 4. gxf3 {[%clk 0:02:50]}  Nd7 {[%clk 0:02:44]} 5. c4 {[%clk 0:02:45]}  Ngf6 {[%clk 0:02:34]} 6. Nc3 {[%clk 0:02:44]}  e6 {[%clk 0:02:14]} 7. d5 {[%clk 0:02:40]}  e5 {[%clk 0:02:07]} 8. Bh3 {[%clk 0:02:40]}  Be7 {[%clk 0:02:06]} 9. Rg1 {[%clk 0:02:33]}  g6 {[%clk 0:01:37]} 10. Qb3 {[%clk 0:02:13]}  Nc5 {[%clk 0:01:00]} 11. Qc2 {[%clk 0:02:03]}  a5 {[%clk 0:00:54]} 12. f4 {[%clk 0:01:28]}  Nh5 {[%clk 0:00:47]} 13. e3 {[%clk 0:01:06]}  exf4 {[%clk 0:00:33]} 14. exf4 {[%clk 0:01:06]}  O-O {[%clk 0:00:32]} 15. O-O-O {[%clk 0:01:04]}  Bxg5 {[%clk 0:00:28]} 16. fxg5 {[%clk 0:01:02]}  Re8 {[%clk 0:00:28]} 17. Kb1 {[%clk 0:01:00]}  Qe7 {[%clk 0:00:21]} 18. Qd2 {[%clk 0:00:56]}  Qe5 {[%clk 0:00:20]} 19. Bg4 {[%clk 0:00:49]}  Nf4 {[%clk 0:00:12]} 20. Rde1 {[%clk 0:00:48]}  Qxg5 {[%clk 0:00:12]} 21. Bd1 {[%clk 0:00:20]}  Qf6 {[%clk 0:00:08]} 22. Bc2 {[%clk 0:00:19]}  Nh5 {[%clk 0:00:07]} 23. Nb5 {[%clk 0:00:18]}  Re7 {[%clk 0:00:06]} 24. Rxe7 {[%clk 0:00:17]}  Qxe7 {[%clk 0:00:07]} 25. Re1 {[%clk 0:00:16]}  Qd7 {[%clk 0:00:07]} 26. Qg5 {[%clk 0:00:16]}  Re8 {[%clk 0:00:06]} 27. Rg1 {[%clk 0:00:13]}  c6 {[%clk 0:00:05]} 28. Nc3 {[%clk 0:00:10]}  Re5 {[%clk 0:00:05]} 29. Qd2 {[%clk 0:00:07]}  Qe7 {[%clk 0:00:06]} 30. a3 {[%clk 0:00:06]}  Nf6 {[%clk 0:00:05]} 31. dxc6 {[%clk 0:00:06]}  bxc6 {[%clk 0:00:06]} 32. Rd1 {[%clk 0:00:06]}  d5 {[%clk 0:00:05]} 33. cxd5 {[%clk 0:00:06]}  Nxd5 {[%clk 0:00:05]} 34. Nxd5 {[%clk 0:00:04]}  Rxd5 {[%clk 0:00:06]} 35. Qxa5 {[%clk 0:00:04]}  Rxd1+ {[%clk 0:00:04]} 36. Bxd1 {[%clk 0:00:05]}  Ne4 {[%clk 0:00:04]} 37. Bc2 {[%clk 0:00:04]}  Nxf2 {[%clk 0:00:03]} 38. Qa8+ {[%clk 0:00:04]}  Kg7 {[%clk 0:00:03]} 39. Qxc6 {[%clk 0:00:05]}  Qf6 {[%clk 0:00:02]} 40. Qxf6+ {[%clk 0:00:05]}  Kxf6 {[%clk 0:00:03]} 41. a4 {[%clk 0:00:04]}  Ke5 {[%clk 0:00:03]} 42. a5 {[%clk 0:00:05]}  Kd6 {[%clk 0:00:04]} 43. b4 {[%clk 0:00:05]}  Kc7 {[%clk 0:00:03]} 44. b5 {[%clk 0:00:04]}  f5 {[%clk 0:00:04]} 45. Kb2 {[%clk 0:00:04]}  Ne4 {[%clk 0:00:04]} 46. Kb3 {[%clk 0:00:04]}  Nd6 {[%clk 0:00:01]} 47. Kb4 {[%clk 0:00:03]}  f4 {[%clk 0:00:02]} 48. b6+ {[%clk 0:00:03]}  Kc6 {[%clk 0:00:02]} 49. Ba4+ {[%clk 0:00:03]}  Kb7 {[%clk 0:00:01]} 50. Kc5 {[%clk 0:00:03]}  Ne4+ {[%clk 0:00:01]} 51. Kd5 {[%clk 0:00:03]}  Nc3+ {[%clk 0:00:02]} 52. Ke5 {[%clk 0:00:02]}  Nxa4 {[%clk 0:00:03]} 53. Kxf4 {[%clk 0:00:03]}  Nc5 {[%clk 0:00:02]} 54. Kg5 {[%clk 0:00:03]}  Ne4+ {[%clk 0:00:03]} 55. Kh6 {[%clk 0:00:03]}  g5 {[%clk 0:00:03]} 56. Kxh7 {[%clk 0:00:03]}  g4 {[%clk 0:00:03]} 57. Kg6 {[%clk 0:00:03]}  Nd2 {[%clk 0:00:03]} 58. Kf5 {[%clk 0:00:02]}  Nf3 {[%clk 0:00:04]} 59. Kxg4 {[%clk 0:00:02]}  Nxh2+ {[%clk 0:00:05]} 60. Kf4 {[%clk 0:00:03]}  Nf1 {[%clk 0:00:05]} 61. Ke4 {[%clk 0:00:03]}  Nd2+ {[%clk 0:00:05]} 62. Kd5 {[%clk 0:00:04]}  Nb3 {[%clk 0:00:06]} 63. Kc4 {[%clk 0:00:04]}  Nxa5+ {[%clk 0:00:06]} 64. Kb5 {[%clk 0:00:04]}  Nc6 {[%clk 0:00:07]} 65. Kc5 {[%clk 0:00:05]}  Nb8 {[%clk 0:00:08]} 66. Kd6 {[%clk 0:00:05]}  Nd7 {[%clk 0:00:09]} 67. Kxd7 {[%clk 0:00:05]}  Kxb6 {[%clk 0:00:09]} 1/2-1/2


[Site "https://www.chess.com"]

[Event "Titled Tuesday Blitz August 16 Early 2022"]
[White "Ferriz Barrios, Andres"]
[Black "Gonzalez Vega, Alejandro"]
[WhiteFideId "5104467"]
[BlackFideId "3510042"]
[WhiteElo "2102"]
[BlackElo "2092"]
[Result "1/2-1/2"]
[Round "06"]
[TimeControl "180+2"]
[Date "2022.08.18"]
[WhiteClock "0:00:00"]
[BlackClock "0:00:00"]

1. d4 {[%clk 0:00:00]}  d5 {[%clk 0:00:00]} 2. Nf3 {[%clk 0:00:00]}  Nf6 {[%clk 0:00:00]} 3. e3 {[%clk 0:00:00]}  c5 {[%clk 0:00:00]} 4. c3 {[%clk 0:00:00]}  Nc6 {[%clk 0:00:00]} 5. Bd3 {[%clk 0:00:00]}  Bg4 {[%clk 0:00:00]} 6. Nbd2 {[%clk 0:00:00]}  e6 {[%clk 0:00:00]} 7. h3 {[%clk 0:00:00]}  Bh5 {[%clk 0:00:00]} 8. Be2 {[%clk 0:00:00]}  Be7 {[%clk 0:00:00]} 9. Ne5 {[%clk 0:00:00]}  Bxe2 {[%clk 0:00:00]} 10. Qxe2 {[%clk 0:00:00]}  cxd4 {[%clk 0:00:00]} 11. exd4 {[%clk 0:00:00]}  Nxe5 {[%clk 0:00:00]} 12. dxe5 {[%clk 0:00:00]}  Nd7 {[%clk 0:00:00]} 13. f4 {[%clk 0:00:00]}  Bh4+ {[%clk 0:00:00]} 14. Kf1 {[%clk 0:00:00]}  g6 {[%clk 0:00:00]} 15. Kg1 {[%clk 0:00:00]}  h5 {[%clk 0:00:00]} 16. Kh2 {[%clk 0:00:00]}  Qb6 {[%clk 0:00:00]} 17. Nf3 {[%clk 0:00:00]}  Be7 {[%clk 0:00:00]} 18. Be3 {[%clk 0:00:00]}  Bc5 {[%clk 0:00:00]} 19. Bxc5 {[%clk 0:00:00]}  Nxc5 {[%clk 0:00:00]} 20. Qf2 {[%clk 0:00:00]}  Ne4 {[%clk 0:00:00]} 21. Qxb6 {[%clk 0:00:00]}  axb6 {[%clk 0:00:00]} 22. Nd4 {[%clk 0:00:00]}  h4 {[%clk 0:00:00]} 23. Nb5 {[%clk 0:00:00]}  Ke7 {[%clk 0:00:00]} 24. a3 {[%clk 0:00:00]}  Rhc8 {[%clk 0:00:00]} 25. Nd4 {[%clk 0:00:00]}  Rc4 {[%clk 0:00:00]} 26. Rhe1 {[%clk 0:00:00]}  Ng3 {[%clk 0:00:00]} 27. Re3 {[%clk 0:00:00]}  Ra5 {[%clk 0:00:00]} 28. Rd1 {[%clk 0:00:00]}  Nf5 {[%clk 0:00:00]} 29. Nxf5+ {[%clk 0:00:00]}  gxf5 {[%clk 0:00:00]} 30. g3 {[%clk 0:00:00]}  hxg3+ {[%clk 0:00:00]} 31. Kxg3 {[%clk 0:00:00]}  Rb5 {[%clk 0:00:00]} 32. Rd2 {[%clk 0:00:00]}  Rc8 {[%clk 0:00:00]} 33. Kf2 {[%clk 0:00:00]}  Rh8 {[%clk 0:00:00]} 34. Rg3 {[%clk 0:00:00]}  Rc5 {[%clk 0:00:00]} 35. Kf3 {[%clk 0:00:00]}  Rc4 {[%clk 0:00:00]} 36. Rd4 {[%clk 0:00:00]}  Rc5 {[%clk 0:00:00]} 37. Ke3 {[%clk 0:00:00]}  Rh4 {[%clk 0:00:00]} 38. Rb4 {[%clk 0:00:00]}  Rc6 {[%clk 0:00:00]} 39. Rf3 {[%clk 0:00:00]}  Rh5 {[%clk 0:00:00]} 40. Kd4 {[%clk 0:00:00]}  Rh4 {[%clk 0:00:00]} 41. c4 {[%clk 0:00:00]}  dxc4 {[%clk 0:00:00]} 42. Rxc4 {[%clk 0:00:00]}  f6 {[%clk 0:00:00]} 43. Rxc6 {[%clk 0:00:00]}  bxc6 {[%clk 0:00:00]} 44. b4 {[%clk 0:00:00]}  fxe5+ {[%clk 0:00:00]} 45. Kxe5 {[%clk 0:00:00]}  Kf7 {[%clk 0:00:00]} 46. Rc3 {[%clk 0:00:00]}  c5 {[%clk 0:00:00]} 47. bxc5 {[%clk 0:00:00]}  bxc5 {[%clk 0:00:00]} 48. Rxc5 {[%clk 0:00:00]}  Rxh3 {[%clk 0:00:00]} 49. Rc7+ {[%clk 0:00:00]}  Ke8 {[%clk 0:00:00]} 50. a4 {[%clk 0:00:00]}  Re3+ {[%clk 0:00:00]} 51. Kf6 {[%clk 0:00:00]}  Re4 {[%clk 0:00:00]} 52. a5 {[%clk 0:00:00]}  Kd8 {[%clk 0:00:00]} 53. Rb7 {[%clk 0:00:00]}  Rxf4 {[%clk 0:00:00]} 54. Kxe6 {[%clk 0:00:00]}  Ra4 {[%clk 0:00:00]} 55. Rb5 {[%clk 0:00:00]}  f4 {[%clk 0:00:00]} 56. Rf5 {[%clk 0:00:00]}  Kc7 {[%clk 0:00:00]} 57. Kf6 {[%clk 0:00:00]}  Kb7 {[%clk 0:00:00]} 58. Kg5 {[%clk 0:00:00]}  Ka6 {[%clk 0:00:00]} 59. Rf8 {[%clk 0:00:00]}  Rxa5+ {[%clk 0:00:00]} 60. Kxf4 {[%clk 0:00:00]}  Ra4+ {[%clk 0:00:00]} 61. Ke3 {[%clk 0:00:00]}  Kb5 {[%clk 0:00:00]} 62. Kd3 {[%clk 0:00:00]}  Ra3+ {[%clk 0:00:00]} 63. Kc2 {[%clk 0:00:00]}  Re3 {[%clk 0:00:00]} 64. Rb8+ {[%clk 0:00:00]}  Kc6 {[%clk 0:00:00]} 65. Rc8+ {[%clk 0:00:00]}  Kd7 {[%clk 0:00:00]} 66. Rh8 {[%clk 0:00:00]}  Re6 {[%clk 0:00:00]} 67. Rh3 {[%clk 0:00:00]}  Rd6 {[%clk 0:00:00]} 68. Kb2 {[%clk 0:00:00]}  Kc6 {[%clk 0:00:00]} 69. Kb3 {[%clk 0:00:00]}  Kb6 {[%clk 0:00:00]} 70. Kb4 {[%clk 0:00:00]}  Rc6 {[%clk 0:00:00]} 71. Rh5 {[%clk 0:00:00]}  Kc7 {[%clk 0:00:00]} 72. Kb5 {[%clk 0:00:00]}  Rb6+ {[%clk 0:00:00]} 73. Ka5 {[%clk 0:00:00]}  Rc6 {[%clk 0:00:00]} 74. Kb5 {[%clk 0:00:00]}  Rd6 {[%clk 0:00:00]} 75. Kc5 {[%clk 0:00:00]}  Rd7 {[%clk 0:00:00]} 76. Rh6 {[%clk 0:00:00]}  Rg7 {[%clk 0:00:00]} 77. Rc6+ {[%clk 0:00:00]}  Kd7 {[%clk 0:00:00]} 78. Ra6 {[%clk 0:00:00]}  Ke7 {[%clk 0:00:00]} 79. Kd5 {[%clk 0:00:00]}  Rg5+ {[%clk 0:00:00]} 80. Ke4 {[%clk 0:00:00]}  Rg4+ {[%clk 0:00:00]} 81. Kf5 {[%clk 0:00:00]}  Rd4 {[%clk 0:00:00]} 82. Ke5 {[%clk 0:00:00]}  Rd7 {[%clk 0:00:00]} 83. Re6+ {[%clk 0:00:00]}  Kf7 {[%clk 0:00:00]} 84. Ra6 {[%clk 0:00:00]}  Re7+ {[%clk 0:00:00]} 85. Kf5 {[%clk 0:00:00]}  Rb7 {[%clk 0:00:00]} 86. Rf6+ {[%clk 0:00:00]}  Kg7 {[%clk 0:00:00]} 87. Ra6 {[%clk 0:00:00]}  Rb5+ {[%clk 0:00:00]} 88. Kg4 {[%clk 0:00:00]}  Rb4+ {[%clk 0:00:00]} 89. Kg5 {[%clk 0:00:00]}  Rb5+ {[%clk 0:00:00]} 90. Kg4 {[%clk 0:00:00]}  Rb4+ {[%clk 0:00:00]} 91. Kf5 {[%clk 0:00:00]}  Rb5+ {[%clk 0:00:00]} 92. Ke6 {[%clk 0:00:00]}  Rb7 {[%clk 0:00:00]} 93. Kd5 {[%clk 0:00:00]}  Rf7 {[%clk 0:00:00]} 1/2-1/2


[Site "https://www.chess.com"]

[Event "Titled Tuesday Blitz August 16 Early 2022"]
[White "Gheorghiu, Calin"]
[Black "Tologon tegin, Semetei"]
[WhiteFideId "1200305"]
[BlackFideId "13800574"]
[WhiteElo "2168"]
[BlackElo "2174"]
[Result "1-0"]
[Round "06"]
[TimeControl "180+2"]
[Date "2022.08.18"]
[WhiteClock "0:00:00"]
[BlackClock "0:00:00"]

1. d4 {[%clk 0:00:00]}  e6 {[%clk 0:00:00]} 2. Nc3 {[%clk 0:00:00]}  b6 {[%clk 0:00:00]} 3. e4 {[%clk 0:00:00]}  Bb7 {[%clk 0:00:00]} 4. a3 {[%clk 0:00:00]}  c5 {[%clk 0:00:00]} 5. d5 {[%clk 0:00:00]}  exd5 {[%clk 0:00:00]} 6. exd5 {[%clk 0:00:00]}  Nf6 {[%clk 0:00:00]} 7. Nf3 {[%clk 0:00:00]}  Bd6 {[%clk 0:00:00]} 8. Nb5 {[%clk 0:00:00]}  Qe7+ {[%clk 0:00:00]} 9. Be2 {[%clk 0:00:00]}  a6 {[%clk 0:00:00]} 10. Nxd6+ {[%clk 0:00:00]}  Qxd6 {[%clk 0:00:00]} 11. c4 {[%clk 0:00:00]}  O-O {[%clk 0:00:00]} 12. O-O {[%clk 0:00:00]}  Qc7 {[%clk 0:00:00]} 13. b3 {[%clk 0:00:00]}  d6 {[%clk 0:00:00]} 14. Bb2 {[%clk 0:00:00]}  Nbd7 {[%clk 0:00:00]} 15. Bd3 {[%clk 0:00:00]}  Rfe8 {[%clk 0:00:00]} 16. Qd2 {[%clk 0:00:00]}  Ne5 {[%clk 0:00:00]} 17. Nxe5 {[%clk 0:00:00]}  dxe5 {[%clk 0:00:00]} 18. Rae1 {[%clk 0:00:00]}  Nd7 {[%clk 0:00:00]} 19. Qg5 {[%clk 0:00:00]}  f6 {[%clk 0:00:00]} 20. Qh4 {[%clk 0:00:00]}  Nf8 {[%clk 0:00:00]} 21. Re3 {[%clk 0:00:00]}  Bc8 {[%clk 0:00:00]} 22. Rg3 {[%clk 0:00:00]}  Qd6 {[%clk 0:00:00]} 23. f4 {[%clk 0:00:00]}  e4 {[%clk 0:00:00]} 24. Bxf6 {[%clk 0:00:00]}  Ng6 {[%clk 0:00:00]} 25. Rxg6 {[%clk 0:00:00]}  hxg6 {[%clk 0:00:00]} 26. Be5 {[%clk 0:00:00]}  Rxe5 {[%clk 0:00:00]} 27. fxe5 {[%clk 0:00:00]}  Qxe5 {[%clk 0:00:00]} 28. Qxe4 {[%clk 0:00:00]}  Qxe4 {[%clk 0:00:00]} 29. Bxe4 {[%clk 0:00:00]}  Bf5 {[%clk 0:00:00]} 30. Bxf5 {[%clk 0:00:00]}  gxf5 {[%clk 0:00:00]} 31. Rxf5 {[%clk 0:00:00]}  Re8 {[%clk 0:00:00]} 32. Kf2 {[%clk 0:00:00]}  b5 {[%clk 0:00:00]} 33. Rf4 {[%clk 0:00:00]}  bxc4 {[%clk 0:00:00]} 34. bxc4 {[%clk 0:00:00]}  Rb8 {[%clk 0:00:00]} 35. Rf3 {[%clk 0:00:00]}  Rb2+ {[%clk 0:00:00]} 36. Kg3 {[%clk 0:00:00]}  Rc2 {[%clk 0:00:00]} 37. Rd3 {[%clk 0:00:00]}  Rb2 {[%clk 0:00:00]} 38. d6 {[%clk 0:00:00]}  Rb8 {[%clk 0:00:00]} 39. d7 {[%clk 0:00:00]}  Rd8 {[%clk 0:00:00]} 40. Kf4 {[%clk 0:00:00]}  Kf7 {[%clk 0:00:00]} 41. g4 {[%clk 0:00:00]}  Ke7 {[%clk 0:00:00]} 42. h4 {[%clk 0:00:00]}  Rf8+ {[%clk 0:00:00]} 43. Ke5 {[%clk 0:00:00]}  Kd8 {[%clk 0:00:00]} 44. g5 {[%clk 0:00:00]}  Rf2 {[%clk 0:00:00]} 45. Kd6 {[%clk 0:00:00]}  Rf4 {[%clk 0:00:00]} 46. Kxc5 {[%clk 0:00:00]}  Rxh4 {[%clk 0:00:00]} 47. Rd5 {[%clk 0:00:00]}  Rh3 {[%clk 0:00:00]} 48. Kc6 {[%clk 0:00:00]}  Rc3 {[%clk 0:00:00]} 49. c5 {[%clk 0:00:00]}  Re3 {[%clk 0:00:00]} 50. Kb7 {[%clk 0:00:00]}  Rb3+ {[%clk 0:00:00]} 51. Ka7 {[%clk 0:00:00]}  Rxa3 {[%clk 0:00:00]} 52. c6 {[%clk 0:00:00]}  Rc3 {[%clk 0:00:00]} 53. Kb6 {[%clk 0:00:00]}  Rb3+ {[%clk 0:00:00]} 54. Kxa6 {[%clk 0:00:00]}  Rc3 {[%clk 0:00:00]} 55. Kb6 {[%clk 0:00:00]}  Rb3+ {[%clk 0:00:00]} 56. Rb5 {[%clk 0:00:00]}  Rc3 {[%clk 0:00:00]} 57. Rc5 {[%clk 0:00:00]}  Rb3+ {[%clk 0:00:00]} 58. Ka5 {[%clk 0:00:00]}  Kc7 {[%clk 0:00:00]} 59. Ka4 {[%clk 0:00:00]}  Rb8 {[%clk 0:00:00]} 60. Ka5 {[%clk 0:00:00]}  Ra8+ {[%clk 0:00:00]} 61. Kb4 {[%clk 0:00:00]}  Rf8 {[%clk 0:00:00]} 62. Kc4 {[%clk 0:00:00]}  Rf4+ {[%clk 0:00:00]} 63. Kd5 {[%clk 0:00:00]}  Rf5+ {[%clk 0:00:00]} 64. Kd4 {[%clk 0:00:00]}  Rf4+ {[%clk 0:00:00]} 65. Ke5 {[%clk 0:00:00]}  Rf1 {[%clk 0:00:00]} 66. Ke6 {[%clk 0:00:00]}  Re1+ {[%clk 0:00:00]} 67. Kf7 {[%clk 0:00:00]}  Rf1+ {[%clk 0:00:00]} 68. Kxg7 {[%clk 0:00:00]}  Rd1 {[%clk 0:00:00]} 69. g6 {[%clk 0:00:00]}  Kb6 {[%clk 0:00:00]} 70. Rc2 {[%clk 0:00:00]}  Kc7 {[%clk 0:00:00]} 71. Kg8 {[%clk 0:00:00]}  Rd6 {[%clk 0:00:00]} 72. g7 {[%clk 0:00:00]}  Rd1 {[%clk 0:00:00]} 73. Rc4 {[%clk 0:00:00]}  Rd2 {[%clk 0:00:00]} 74. Kf7 {[%clk 0:00:00]}  Rd1 {[%clk 0:00:00]} 75. g8=Q {[%clk 0:00:00]}  Rf1+ {[%clk 0:00:00]} 76. Ke6 {[%clk 0:00:00]}  Re1+ {[%clk 0:00:00]} 77. Kd5 {[%clk 0:00:00]}  Rd1+ {[%clk 0:00:00]} 78. Rd4 {[%clk 0:00:00]}  Rc1 {[%clk 0:00:00]} 79. Qc8+ {[%clk 0:00:00]} 1-0


[Site "https://www.chess.com"]

[Event "Titled Tuesday Blitz August 16 Early 2022"]
[White "Gomez Ledo, Roberto Carlos"]
[Black "Siniauski, Artsiom"]
[WhiteFideId "3507076"]
[BlackFideId "13512269"]
[WhiteElo "2379"]
[BlackElo "2139"]
[Result "1-0"]
[Round "06"]
[TimeControl "180+2"]
[Date "2022.08.18"]
[WhiteClock "0:00:00"]
[BlackClock "0:00:00"]

1. d4 {[%clk 0:00:00]}  Nf6 {[%clk 0:00:00]} 2. Bf4 {[%clk 0:00:00]}  b6 {[%clk 0:00:00]} 3. e3 {[%clk 0:00:00]}  Bb7 {[%clk 0:00:00]} 4. a4 {[%clk 0:00:00]}  g6 {[%clk 0:00:00]} 5. h3 {[%clk 0:00:00]}  Bg7 {[%clk 0:00:00]} 6. Nf3 {[%clk 0:00:00]}  O-O {[%clk 0:00:00]} 7. Nbd2 {[%clk 0:00:00]}  d6 {[%clk 0:00:00]} 8. c3 {[%clk 0:00:00]}  Nbd7 {[%clk 0:00:00]} 9. a5 {[%clk 0:00:00]}  bxa5 {[%clk 0:00:00]} 10. Rxa5 {[%clk 0:00:00]}  c5 {[%clk 0:00:00]} 11. Ra1 {[%clk 0:00:00]}  Re8 {[%clk 0:00:00]} 12. Bb5 {[%clk 0:00:00]}  e5 {[%clk 0:00:00]} 13. dxe5 {[%clk 0:00:00]}  dxe5 {[%clk 0:00:00]} 14. Bh2 {[%clk 0:00:00]}  e4 {[%clk 0:00:00]} 15. Ng1 {[%clk 0:00:00]}  Re6 {[%clk 0:00:00]} 16. Ne2 {[%clk 0:00:00]}  Nb6 {[%clk 0:00:00]} 17. O-O {[%clk 0:00:00]}  a6 {[%clk 0:00:00]} 18. Bc4 {[%clk 0:00:00]}  Re7 {[%clk 0:00:00]} 19. Ba2 {[%clk 0:00:00]}  Rd7 {[%clk 0:00:00]} 20. Qb3 {[%clk 0:00:00]}  Rxd2 {[%clk 0:00:00]} 21. Qxf7+ {[%clk 0:00:00]}  Kh8 {[%clk 0:00:00]} 22. Qxb7 {[%clk 0:00:00]}  Rxe2 {[%clk 0:00:00]} 23. Bc7 {[%clk 0:00:00]}  Qd2 {[%clk 0:00:00]} 24. Bxb6 {[%clk 0:00:00]}  Re8 {[%clk 0:00:00]} 25. Bxc5 {[%clk 0:00:00]}  Qxb2 {[%clk 0:00:00]} 26. Qxb2 {[%clk 0:00:00]}  Rxb2 {[%clk 0:00:00]} 27. Bd4 {[%clk 0:00:00]}  Rc8 {[%clk 0:00:00]} 28. c4 {[%clk 0:00:00]}  Rb7 {[%clk 0:00:00]} 29. c5 {[%clk 0:00:00]}  Nd7 {[%clk 0:00:00]} 30. Bxg7+ {[%clk 0:00:00]}  Kxg7 {[%clk 0:00:00]} 31. c6 {[%clk 0:00:00]}  Rxc6 {[%clk 0:00:00]} 32. Bd5 {[%clk 0:00:00]}  Rbc7 {[%clk 0:00:00]} 33. Bxc6 {[%clk 0:00:00]}  Rxc6 {[%clk 0:00:00]} 34. Rfc1 {[%clk 0:00:00]}  Rb6 {[%clk 0:00:00]} 35. Rc7 {[%clk 0:00:00]}  Rd6 {[%clk 0:00:00]} 36. Ra7 {[%clk 0:00:00]}  Kh6 {[%clk 0:00:00]} 37. R7xa6 {[%clk 0:00:00]}  Rd2 {[%clk 0:00:00]} 38. R6a2 {[%clk 0:00:00]}  Rd3 {[%clk 0:00:00]} 39. Ra3 {[%clk 0:00:00]}  Rd2 {[%clk 0:00:00]} 40. Rc3 {[%clk 0:00:00]}  Ne5 {[%clk 0:00:00]} 41. Ra4 {[%clk 0:00:00]}  Nd3 {[%clk 0:00:00]} 42. Rxe4 {[%clk 0:00:00]}  Rd1+ {[%clk 0:00:00]} 43. Kh2 {[%clk 0:00:00]}  Nxf2 {[%clk 0:00:00]} 44. Rh4+ {[%clk 0:00:00]}  Kg5 {[%clk 0:00:00]} 45. Rf4 {[%clk 0:00:00]}  Rh1+ {[%clk 0:00:00]} 46. Kg3 {[%clk 0:00:00]}  Nd1 {[%clk 0:00:00]} 47. Rc5+ {[%clk 0:00:00]}  Kh6 {[%clk 0:00:00]} 48. Rh4+ {[%clk 0:00:00]}  Kg7 {[%clk 0:00:00]} 49. Rc7+ {[%clk 0:00:00]}  Kf6 {[%clk 0:00:00]} 50. Rhxh7 {[%clk 0:00:00]}  Nxe3 {[%clk 0:00:00]} 51. Rcf7+ {[%clk 0:00:00]}  Ke5 {[%clk 0:00:00]} 52. Re7+ {[%clk 0:00:00]}  Kd4 {[%clk 0:00:00]} 53. Rh4+ {[%clk 0:00:00]}  Kd3 {[%clk 0:00:00]} 54. Rxe3+ {[%clk 0:00:00]}  Kxe3 {[%clk 0:00:00]} 55. Rg4 {[%clk 0:00:00]}  Ra1 {[%clk 0:00:00]} 56. Rxg6 {[%clk 0:00:00]}  Ke2 {[%clk 0:00:00]} 57. Kh4 {[%clk 0:00:00]}  Kf2 {[%clk 0:00:00]} 58. g4 {[%clk 0:00:00]}  Kg2 {[%clk 0:00:00]} 59. Rc6 {[%clk 0:00:00]}  Ra2 {[%clk 0:00:00]} 60. Rc3 {[%clk 0:00:00]}  Kh2 {[%clk 0:00:00]} 61. g5 {[%clk 0:00:00]}  Ra4+ {[%clk 0:00:00]} 62. Kh5 {[%clk 0:00:00]}  Ra5 {[%clk 0:00:00]} 63. h4 {[%clk 0:00:00]} 1-0


[Site "https://www.chess.com"]